[Event "40th IND-chT Open 2020"]
[Site "Ahmedabad"]
[Date "2020.02.11"]
[Round "7.8"]
[White "Sai Agni Jeevitesh, J."]
[Black "Girinath, P.D.S."]
[Result "1-0"]
[ECO "E61"]
[WhiteElo "2310"]
[BlackElo "2353"]
[Annotator "RC"]
[PlyCount "106"]
[EventDate "2020.02.05"]
[EventCountry "IND"]
[SourceTitle "playchess.com"]
[Source "ChessBase"]
[SourceQuality "1"]
[TimeControl "5400+30"]

1. d4 {[%emt 0:00:00]} d6 {[%emt 0:01:31]} 2. Nf3 {[%emt 0:01:26]} Nf6 {[%emt 0:01:32]} 3. c4 {[%emt 0:00:42]} g6 {[%emt 0:00:22]} 4. e3 {[%emt 0:00:13]} Bg7 {[%emt 0:00:18]} 5. Be2 {[%emt 0:00:02]} O-O {[%emt 0:01:25]} 6. Nc3 {[%emt 0:00:03]} Nbd7 {[%emt 0:01:00]} 7. O-O {[%emt 0:00:20]} e5 {[%emt 0:00:07]} 8. Qc2 {[%emt 0:00:02]} Re8 {[%emt 0:00:59]} 9. Rd1 {[%emt 0:00:02]} e4 {[%emt 0:07:50]} 10. Nd2 {[%emt 0:00:23]} Qe7 {[%emt 0:00:26]} 11. b4 {[%emt 0:00:02]} h5 {[%emt 0:01:15]} 12. Bb2 {[%emt 0:00:02]} Nf8 {[%emt 0:02:14]} 13. Nb3 {[%emt 0:00:45]} N8h7 {[%emt 0:02:55]} 14. d5 {[%emt 0:01:55]} Ng5 {[%emt 0:08:35]} 15. c5 {[%emt 0:04:59]} Bg4 {[%emt 0:08:24]} 16. Nd4 {[%emt 0:04:47]} Bxe2 {[%emt 0:27:08]} 17. Ncxe2 {[%emt 0:16:09]} h4 {[%emt 0:03:16]} 18. h3 {[%emt 0:06:16]} Nh5 {[%emt 0:00:32]} 19. Rac1 {[%emt 0:06:36]} Be5 {[%emt 0:01:16]} 20. cxd6 {[%emt 0:21:44]} cxd6 {[%emt 0:28:55]} 21. Qc7 {[%emt 0:01:24]} f5 {[%emt 0:00:00]} 22. Qxe7 {[%emt 0:07:18]} Rxe7 {[%emt 0:00:00]} 23. Rc2 {[%emt 0:00:28]} f4 {[%emt 0:00:00]} 24. exf4 {[%emt 0:01:23]} Nxf4 {[%emt 0:00:00]} 25. Nxf4 {[%emt 0:00:37]} Bxf4 {[%emt 0:00:00]} 26. Ne2 {[%emt 0:02:10]} Rf8 {[%emt 0:00:00]} 27. Nxf4 {[%emt 0:01:36]} Rxf4 {[%emt 0:00:00]} 28. Rc8+ {[%emt 0:00:32]} Kf7 {[%emt 0:00:00]} 29. Rd8 {[%emt 0:02:36]} e3 {[%emt 0:00:00]} 30. fxe3 {[%emt 0:00:39]} Rf5 {[%emt 0:00:00]} 31. Rxd6 {[%emt 0:02:04]} Rxe3 {[%emt 0:00:00]} 32. Bd4 {[%emt 0:07:24]} Re2 {[%emt 0:00:00]} 33. Bxa7 {[%emt 0:00:57]} Ne4 {[%emt 0:00:34]} 34. Rd7+ {[%emt 0:07:03]} Ke8 {[%emt 0:02:05]} 35. Rh7 {[%emt 0:01:18]} Rh5 {[%emt 0:02:08]} 36. Rxh5 {[%emt 0:01:19]} gxh5 {[%emt 0:00:01]} 37. a4 {[%emt 0:00:51]} Kd7 {[%emt 0:01:19]} 38. a5 {[%emt 0:00:49]} Rc2 {[%emt 0:01:31]} 39. Rd4 {[%emt 0:01:01]} Rc1+ {[%emt 0:01:16]} 40. Kh2 {[%emt 0:00:03]} Re1 {[%emt 0:00:17]} 41. Bc5 {[%emt 0:00:55]} Kd8 {[%emt 0:00:42]} 42. Bb6+ {[%emt 0:00:48]} Kd7 {[%emt 0:00:01]} 43. b5 {[%emt 0:00:37]} Kd6 {[%emt 0:00:28]} 44. a6 {[%emt 0:00:52]} bxa6 {[%emt 0:00:11]} 45. bxa6 {[%emt 0:00:01]} Ng3 {[%emt 0:01:10]} 46. Rxh4 {[%emt 0:00:18]} Nf1+ {[%emt 0:00:08]} 47. Kg1 {[%emt 0:00:00]} Ra1 {[%emt 0:01:01]} 48. Kf2 {[%emt 0:01:02]} Nd2 {[%emt 0:00:14]} 49. a7 {[%emt 0:00:27]} Ra2 {[%emt 0:00:04]} 50. Ke1 {[%emt 0:00:44]} Nb3 {[%emt 0:00:29]} 51. Rxh5 {[%emt 0:00:17]} Nc1 {[%emt 0:00:05]} 52. Rh8 {[%emt 0:00:42]} Nd3+ {[%emt 0:00:05]} 53. Kd1 {[%emt 0:00:28]} Kxd5 {[%emt 0:02:41]} 1-0

[Event "40th IND-chT Open 2020"]
[Site "Ahmedabad"]
[Date "2020.02.11"]
[Round "7.20"]
[White "Chudasama Ankit"]
[Black "Baivab Mishra"]
[Result "1/2-1/2"]
[ECO "B77"]
[WhiteElo "1824"]
[BlackElo "2206"]
[Annotator "ChessBase"]
[PlyCount "61"]
[EventDate "2020.02.05"]
[EventCountry "IND"]
[SourceTitle "playchess.com"]
[Source "ChessBase"]
[SourceQuality "1"]
[TimeControl "5400+30"]

1. e4 {[%emt 0:00:00]} c5 2. Nf3 {[%emt 0:00:17]} g6 {[%emt 0:02:50]} 3. d4 {[%emt 0:00:30]} cxd4 {[%emt 0:00:30]} 4. Nxd4 {[%emt 0:00:30]} Nc6 {[%emt 0:00:30]} 5. Nc3 {[%emt 0:00:30]} Bg7 {[%emt 0:00:30]} 6. Be3 {[%emt 0:00:30]} Nf6 {[%emt 0:00:30]} 7. Bc4 {[%emt 0:00:30]} O-O {[%emt 0:00:30]} 8. Bb3 {[%emt 0:00:30]} d6 {[%emt 0:00:30]} 9. f3 {[%emt 0:00:30]} Bd7 {[%emt 0:00:30]} 10. Qd2 {[%emt 0:00:30]} Nxd4 {[%emt 0:00:30]} 11. Bxd4 {[%emt 0:00:30]} b5 {[%emt 0:00:30]} 12. Nd5 {[%emt 0:00:30]} Nxd5 {[%emt 0:00:30]} 13. Bxg7 {[%emt 0:00:30]} Kxg7 {[%emt 0:00:30]} 14. exd5 {[%emt 0:00:30]} a5 {[%emt 0:00:30]} 15. Qd4+ {[%emt 0:00:30]} Kg8 {[%emt 0:00:30]} 16. a4 {[%emt 0:00:30]} Qc7 {[%emt 0:00:30]} 17. axb5 {[%emt 0:00:30]} Bxb5 {[%emt 0:00:30]} 18. c4 {[%emt 0:00:30]} Bd7 {[%emt 0:00:30]} 19. O-O {[%emt 0:00:30]} Rab8 {[%emt 0:00:30]} 20. Ba4 {[%emt 0:00:30]} e5 {[%emt 0:00:30]} 21. dxe6 {[%emt 0:00:30]} Bxe6 {[%emt 0:00:30]} 22. b3 {[%emt 0:00:30]} Rb7 {[%emt 0:00:30]} 23. Rac1 {[%emt 0:00:30]} d5 {[%emt 0:00:30]} 24. Bb5 {[%emt 0:00:30]} dxc4 {[%emt 0:00:30]} 25. Bxc4 {[%emt 0:00:30]} Rbb8 {[%emt 0:00:30]} 26. Rfe1 {[%emt 0:00:30]} Bxc4 {[%emt 0:00:30]} 27. bxc4 {[%emt 0:00:30]} Rfd8 {[%emt 0:00:30]} 28. Qc3 {[%emt 0:00:30]} a4 {[%emt 0:00:30]} 29. Ra1 {[%emt 0:00:30]} Qb6+ {[%emt 0:00:30]} 30. Kh1 {[%emt 0:00:30]} Qa6 {[%emt 0:00:30]} 31. h3 {[%emt 0:00:30]} 1/2-1/2

[Event "40th IND-chT Open 2020"]
[Site "Ahmedabad"]
[Date "2020.02.11"]
[Round "7.21"]
[White "Rupesh, Ranjan"]
[Black "Jatinder, Kapoor"]
[Result "1-0"]
[ECO "B94"]
[WhiteElo "1889"]
[BlackElo "1586"]
[Annotator "NA RC"]
[PlyCount "53"]
[EventDate "2020.02.05"]
[EventCountry "IND"]
[SourceTitle "playchess.com"]
[Source "ChessBase"]
[SourceQuality "1"]
[TimeControl "5400+30"]

{[%evp 8,53,37,22,27,22,17,14,26,36,27,14,70,46,95,83,60,-16,73,79,86,68,66,39,78,71,124,77,173,0,19,0,28,12,30,18,681,778,830,1395,926,2842,2493,2140,29992,29993,29993,29994]} 1. e4 {[%emt 1:30:30]} c5 {[%emt 1:30:30]} 2. Nf3 {[%emt 0:00:30]} d6 {[%emt 0:00:30]} 3. d4 {[%emt 0:00:30]} cxd4 {[%emt 0:00:30]} 4. Nxd4 {[%emt 0:00:30]} Nf6 {[%emt 0:00:30]} 5. Nc3 {[%emt 0:00:30]} a6 {[%emt 0:00:30]} 6. Bg5 {[%emt 0:00:30]} Nbd7 {[%emt 0:00:30]} 7. Qe2 {[%emt 0:00:30] B94: Sicilian Najdorf: 6 Bg5 Nbd7.} g6 {[%emt 0:00:30]} 8. f4 {[%emt 0:00:30]} Qc7 {[%emt 0:00:30]} 9. g4 {[%emt 0:00:30]} Bg7 {[%emt 0:00:30]} 10. O-O-O {[%emt 0:00:30]} O-O {[%emt 0:00:30]} 11. f5 {[%emt 0:00:30]} b5 {[%emt 0:00:30] [#]} 12. Bxf6 $146 {[%emt 0:00:30]} ({Better is} 12. h4 $14) ({Predecessor:} 12. Bg2 Ne5 13. Bxf6 Bxf6 14. Nd5 Bg5+ 15. Kb1 Qd8 16. h4 Bh6 17. g5 Bg7 18. h5 {1-0 (31) Peters,T (1571)-Koczy,W (1466) Germany 2019}) 12... Bxf6 {[%emt 0:00:30]} (12... Nxf6 $15 {stays ahead.} 13. Bg2 Rb8) 13. Nd5 {[%emt 0:00:30]} Qa5 {[%emt 0:00:30]} 14. Kb1 {[%emt 0:00:30]} Bb7 {[%emt 0:00:30]} 15. Nxf6+ {[%emt 0:00:30]} Nxf6 {[%emt 0:00:30]} 16. Bg2 {[%emt 0:00:30]} Rac8 {[%emt 0:00:30]} 17. h4 {[%emt 0:00:30]} Rc4 {[#]} (17... Qb4 $16) 18. h5 $2 {[%emt 0:00:30]} (18. fxg6 $1 $18 hxg6 19. h5) 18... g5 $1 {[%emt 0:01:00]} 19. h6 {[%emt 0:00:30]} Kh8 {[%emt 0:00:30]} 20. Rhg1 {[%emt 0:00:30]} Qb4 {[%emt 0:00:30]} 21. e5 {[%emt 0:00:30]} Rxd4 $4 {[%emt 0:00:30]} (21... dxe5 $14 22. Qxe5 (22. Bxb7 exd4 23. Rge1 Qd6 $14) 22... Bxg2 23. Rxg2 Qc5 24. Qxc5 Rxc5) 22. exf6 {[%emt 0:00:30]} ({Less strong is} 22. Bxb7 dxe5 23. Qxe5 Rxd1+ 24. Rxd1 Qxg4 $16) 22... Bxg2 {[%emt 0:00:30]} 23. fxe7 {[%emt 0:00:30]} Re8 {[%emt 0:00:30]} 24. Qxg2 {[%emt 0:00:30]} d5 {[%emt 0:00:30]} 25. f6 {[%emt 0:00:30]} Rf4 {[%emt 0:00:30]} 26. Qxd5 {[%emt 0:00:30] Double Attack} Rxf6 {[%emt 0:00:30] [#]} 27. Qd8 {[%emt 0:00:30]} 1-0

[Event "40th IND-chT Open 2020"]
[Site "Ahmedabad"]
[Date "2020.02.11"]
[Round "7.22"]
[White "Mayank Sharma Nandkishore"]
[Black "Himanshu Ranjan"]
[Result "1-0"]
[ECO "C00"]
[WhiteElo "1711"]
[BlackElo "1908"]
[Annotator "NA RC"]
[PlyCount "81"]
[EventDate "2020.02.05"]
[EventCountry "IND"]
[SourceTitle "playchess.com"]
[Source "ChessBase"]
[SourceQuality "1"]
[TimeControl "5400+30"]

{[%evp 8,81,-12,-20,32767,32767,32767,32767,12,-40,-35,-38,-22,-50,-33,-43,-35,-46,0,-72,31,-2,70,52,90,40,47,81,46,52,58,-17,41,27,23,0,37,27,58,27,45,54,98,70,53,12,107,18,168,106,406,327,340,324,350,350,330,-158,385,-216,32767,32767,32767,32767,32767,32767,32767,0,286,264,299,339,1570,1749,29989,29990]} 1. e4 {[%emt 0:00:00]} e6 {[%emt 0:00:00]} 2. d3 {[%emt 0:00:00]} d5 {[%emt 0:00:00]} 3. Nd2 {[%emt 0:00:00]} Nf6 {[%emt 0:03:12]} 4. Ngf3 {[%emt 0:00:08]} Be7 {[%emt 0:00:24]} 5. g3 {[%emt 0:00:06]} O-O {[%emt 0:00:05]} 6. Bg2 {[%emt 0:00:03] C00: French: Unusual White 2nd moves.} c5 {[%emt 0:00:08]} 7. O-O {[%emt 0:00:06]} b5 {[%emt 0:02:23]} 8. e5 {[%emt 0:00:38]} Nfd7 $1 {[%emt 0:00:02]} 9. Re1 {[%emt 0:00:06]} a5 {[%emt 0:00:34] [#]} 10. h4 $146 {[%emt 0:00:19]} ({Predecessor:} 10. c3 Qc7 11. Qe2 Ba6 12. Nf1 Nc6 13. Bf4 b4 14. h4 a4 15. Qd2 Rab8 16. N1h2 {½-½ (63) Franco Filho,S (1796)-Bedin,M Cuiaba 2019}) 10... a4 {[%emt 0:00:15]} 11. Nf1 {[%emt 0:00:44]} Bb7 {[%emt 0:00:22]} 12. h5 {[%emt 0:02:22]} a3 {[%emt 0:07:01]} 13. b3 {[%emt 0:00:18]} (13. bxa3 $11 h6 14. Rb1) 13... c4 {[%emt 0:01:07]} (13... h6 $15) 14. d4 {[%emt 0:06:06]} Qc7 {[%emt 0:00:38]} (14... h6 $11) 15. N1h2 {[%emt 0:00:59]} Na6 {[%emt 0:00:20]} 16. Ng4 {[%emt 0:01:07]} cxb3 {[%emt 0:01:31]} 17. cxb3 {[%emt 0:00:15]} Nb4 {[%emt 0:00:02]} 18. Re2 {[%emt 0:08:01]} Rfc8 {[%emt 0:03:58] [#]} 19. Bf4 {[%emt 0:01:59]} (19. h6 $1 $16) 19... Qb6 {[%emt 0:03:10]} 20. Rc1 {[%emt 0:37:02]} Rxc1 {[%emt 0:04:39]} 21. Qxc1 {[%emt 0:00:05]} Qa5 {[%emt 0:01:01]} 22. Qb1 {[%emt 0:00:54]} Qd8 {[%emt 0:00:45]} 23. Bd2 {[%emt 0:03:18]} Rc8 {[%emt 0:00:26]} 24. Bf1 {[%emt 0:10:21]} Ba6 {[%emt 0:03:15]} 25. Bxb4 {[%emt 0:05:08]} Bxb4 {[%emt 0:00:04]} 26. Rc2 {[%emt 0:00:06]} Be7 {[%emt 0:17:40] [#]} (26... h6 $1 $11) 27. Qc1 {[%emt 0:01:58]} (27. h6 $1 $16) 27... Nb6 {[%emt 0:00:31]} (27... Rxc2 $11 28. Qxc2 h6) 28. Bd3 {[%emt 0:01:40]} Qd7 $2 {[%emt 0:13:41] [#]} (28... Nd7 $16) 29. Nf6+ $1 {[%emt 0:05:26]} gxf6 {[%emt 0:07:44]} 30. exf6 {[%emt 0:03:09]} Bxf6 {[%emt 0:00:28] [#]} 31. Qh6 $1 {[%emt 0:00:26] Double Attack} Bg7 {[%emt 0:00:54]} 32. Qxh7+ {[%emt 0:00:06]} Kf8 {[%emt 0:00:06]} 33. Rxc8+ $4 {[%emt 0:00:27]} (33. h6 $18 {avoids the disaster.} Bf6 34. Ne5) 33... Nxc8 {[%emt 0:00:15]} 34. h6 {[%emt 0:00:12]} Bf6 {[%emt 0:00:14]} 35. g4 {[%emt 0:00:42]} Qe7 {[%emt 0:01:01]} 36. Kf1 {[%emt 0:01:24]} Nd6 {[%emt 0:00:32] [#]} 37. g5 $1 {[%emt 0:02:25]} Bb7 $2 {[%emt 0:00:56]} (37... Ne4 $1 $11 {and Black stays safe.}) 38. gxf6 {[%emt 0:00:30]} Qxf6 {[%emt 0:00:03]} 39. Ne5 {[%emt 0:00:09]} Ke7 {[%emt 0:00:35]} (39... Bc8 $142 40. Ke2 b4) 40. Qg7 {[%emt 0:00:32]} b4 {[%emt 0:00:25]} 41. Ng6+ {[%emt 0:00:06]} 1-0

[Event "40th IND-chT Open 2020"]
[Site "Ahmedabad"]
[Date "2020.02.11"]
[Round "7.23"]
[White "Kumar, Gaurav"]
[Black "Sanchit, Anand"]
[Result "1/2-1/2"]
[ECO "C00"]
[WhiteElo "2069"]
[BlackElo "1891"]
[Annotator "NA RC"]
[PlyCount "86"]
[EventDate "2020.02.05"]
[EventCountry "IND"]
[SourceTitle "playchess.com"]
[Source "ChessBase"]
[SourceQuality "1"]
[TimeControl "5400+30"]

{[%evp 8,86,21,-10,0,-16,-10,-20,10,-18,10,0,0,0,0,0,28,14,20,29,20,20,56,54,68,69,106,62,83,0,0,0,0,0,0,0,0,0,0,0,0,0,0,0,0,-995,32767,32767,32767,32767,32767,32767,32767,32767,32767,32767,32767,32767,0,-118,-119,-230,-241,-237,0,-280,618,-156,-154,-156,0,-144,0,-163,0,-137,0,-29999,29987,0,29993]} 1. Nf3 {[%emt 0:00:26]} d5 {[%emt 0:00:00]} 2. g3 {[%emt 0:00:06]} Nf6 {[%emt 0:00:06]} 3. Bg2 {[%emt 0:00:02]} e6 {[%emt 0:01:45]} 4. O-O {[%emt 0:00:04]} Be7 {[%emt 0:00:05]} 5. d3 {[%emt 0:00:06]} c5 {[%emt 0:00:18]} 6. Nbd2 {[%emt 0:00:40]} Nc6 {[%emt 0:01:15]} 7. e4 {[%emt 0:01:28]} Qc7 {[%emt 0:00:59]} 8. Re1 {[%emt 0:01:01]} b6 {[%emt 0:06:32]} 9. exd5 {[%emt 0:07:33]} exd5 {[%emt 0:00:50] C00: French: Unusual White 2nd moves.} 10. Nf1 {[%emt 0:00:22]} O-O {[%emt 0:00:19]} 11. Bf4 {[%emt 0:00:59] [#]} Qd8 $146 {[%emt 0:01:27]} ({Predecessor:} 11... Bd6 12. Bg5 Ng4 13. h3 Nge5 14. Ne3 Be6 15. Nd2 f6 16. Bf4 Qf7 17. c4 Nb4 {0-1 (39) Aldenhoven,H-Hatlebakk,E Buesum 1970}) 12. Ne5 {[%emt 0:06:59]} Nxe5 {[%emt 0:04:24]} 13. Bxe5 {[%emt 0:00:02]} Be6 $1 {[%emt 0:02:51]} 14. Ne3 {[%emt 0:01:56]} Rc8 {[%emt 0:03:03]} 15. d4 {[%emt 0:11:35]} Qd7 {[%emt 0:01:48]} 16. c3 {[%emt 0:05:16]} c4 {[%emt 0:05:20]} (16... Rcd8 $14) 17. f4 {[%emt 0:15:05]} Ne4 {[%emt 0:08:32]} 18. f5 {[%emt 0:24:36]} ({Better is} 18. Bxe4 $16 dxe4 19. d5) 18... Bxf5 {[%emt 0:00:28]} 19. Nxf5 {[%emt 0:00:14]} Qxf5 {[%emt 0:00:14]} 20. Bxe4 {[%emt 0:00:57]} dxe4 {[%emt 0:00:16]} 21. Qc2 {[%emt 0:00:05]} Rfe8 {[%emt 0:04:28]} 22. Qxe4 {[%emt 0:01:43]} Qd7 {[%emt 0:07:11]} 23. Qf3 {[%emt 0:02:10]} Bf8 {[%emt 0:01:41]} 24. Rad1 {[%emt 0:04:39]} Re7 {[%emt 0:01:42]} 25. Bf4 {[%emt 0:06:39]} Rce8 {[%emt 0:00:58]} 26. Rxe7 $11 {[%emt 0:00:31]} (26. Re2 $2 {[%emt 0:08:17][%mdl 8192]}) 26... Rxe7 {[%emt 0:00:39]} 27. d5 {[%emt 0:00:25]} (27. h4) 27... b5 {[%emt 0:04:07]} 28. b3 {[%emt 0:01:41]} Re8 {[%emt 0:02:13]} 29. d6 {[%emt 0:01:29]} h6 {[%emt 0:05:17]} 30. bxc4 {[%emt 0:01:07]} bxc4 {[%emt 0:00:04]} 31. Qd5 {[%emt 0:00:16]} Re6 {[%emt 0:02:47]} 32. Qc5 {[%emt 0:05:09]} Re8 {[%emt 0:10:54]} 33. Qxc4 {[%emt 0:00:32]} (33. Qd4 $11 {keeps the balance.}) 33... g5 {[%emt 0:00:10]} 34. Qc7 {[%emt 0:00:35] [#]} (34. Bd2 $17 {was necessary.}) 34... Qg4 $1 {[%emt 0:03:00]} 35. Rf1 {[%emt 0:00:20]} Re2 $2 {[%emt 0:01:43]} (35... Rc8 $19 36. Qxa7 gxf4 37. Rxf4 Qe6) 36. Bxg5 $2 {[%emt 0:00:23]} (36. Be3 $11 {and White has nothing to worry.} Qe6 37. Bxa7 Bxd6 38. Qd8+ Kg7 39. Bd4+ Be5 40. a4) 36... f5 $4 {[%emt 0:00:56]} (36... Qe6 $19 37. Bc1 Bxd6) 37. d7 $2 {[%emt 0:00:10]} (37. Bf4 $18 Qh5 38. Qc4+ Kh7 39. h4 Bxd6 40. Bxd6) 37... Qe4 {[%emt 0:01:07]} 38. Rf2 {[%emt 0:00:59]} Qb1+ $2 {[%emt 0:00:44]} 39. Rf1 {[%emt 0:00:35]} Qe4 $11 {[%emt 0:00:02]} 40. Rf2 $11 {[%emt 0:00:18]} Qb1+ {[%emt 0:00:01]} (40... Re1+ $17 41. Rf1 hxg5 42. Rxe1 (42. d8=Q {leads to mate.} Qe3+ 43. Kg2 Re2+ {[%mdl 64] Double Attack} 44. Kh1 Qe4+ 45. Rf3 Qxf3+ 46. Kg1 Qg2#) 42... Qxe1+ 43. Kg2 Qd2+ 44. Kf1 Qd3+ (44... Be7 45. Qxa7 Qd1+ 46. Kf2 Qd2+ 47. Kf1 Kf7) 45. Kf2) 41. Rf1 {[%emt 0:00:39]} Qe4 $2 {[%emt 0:00:07]} (41... Qxa2 $19 42. Rf2 (42. d8=Q $2 {is a self mate.} Rg2+ 43. Kh1 Rxh2+ 44. Kg1 Qg2#) (42. Qc6 Bc5+ 43. Rf2 Bxf2+ 44. Kh1 Re1+ 45. Kg2 Bg1+ 46. Bd2 Qxd2+ 47. Kh3 Qxh2#) 42... Qb1+ 43. Bc1 Qxc1+ 44. Kg2 Rxf2+ 45. Kxf2 Qd2+ 46. Kf1 Be7 47. Qxa7 Kf7) 42. Be3 $2 {[%emt 0:01:08]} Qg4 $4 {[%emt 0:20:37]} (42... Qg2#) 43. Bg5 $11 {[%emt 0:00:30]} (43. d8=Q {mates} Qe4 44. Bf2 Rxf2 45. Kxf2 f4 46. gxf4 Qc2+ 47. Kf3 Qg6 48. Qc4+ Kg7 49. Qd7+ Kh8 {[#]} 50. Qcf7 $1 {[%mdl 512]}) 43... Qc4 $2 {[%emt 0:00:30]} 1/2-1/2

[Event "40th IND-chT Open 2020"]
[Site "Ahmedabad"]
[Date "2020.02.11"]
[Round "7.24"]
[White "Aansh Gupta"]
[Black "Sudhanshu Ranjan"]
[Result "1-0"]
[ECO "B93"]
[WhiteElo "1900"]
[BlackElo "1978"]
[Annotator "NA RC"]
[PlyCount "37"]
[EventDate "2020.02.05"]
[EventCountry "IND"]
[SourceTitle "playchess.com"]
[Source "ChessBase"]
[SourceQuality "1"]
[TimeControl "5400+30"]

{[%evp 11,37,19,20,-1,-2,3,3,0,0,8,0,0,0,-11,-18,-10,89,95,74,174,179,170,958,1078,1052,1117,1197,1285]} 1. e4 {[%emt 1:30:30]} c5 {[%emt 1:30:30]} 2. Nf3 {[%emt 0:00:30]} d6 {[%emt 0:00:30]} 3. d4 {[%emt 0:00:30]} cxd4 {[%emt 0:00:30]} 4. Nxd4 {[%emt 0:00:30]} Nf6 {[%emt 0:00:30]} 5. Nc3 {[%emt 0:00:30]} a6 {[%emt 0:00:30]} 6. f4 {[%emt 0:00:30]} e5 {[%emt 0:00:30]} 7. Nf3 {[%emt 0:00:30]} Qc7 {[%emt 0:00:30]} 8. Bd3 {[%emt 0:00:30]} Be7 {[%emt 0:00:30]} 9. O-O {[%emt 0:00:30]} O-O {[%emt 0:00:30]} 10. Kh1 {[%emt 0:00:30]} Nbd7 {[%emt 0:00:30]} 11. Qe1 {[%emt 0:00:30] B93: Sicilian Najdorf: 6 f4.} Nc5 {[%emt 0:00:30]} 12. fxe5 {[%emt 0:00:30]} dxe5 {[%emt 0:00:30]} 13. Qg3 {[%emt 0:00:30] [#]} Ncd7 $146 {[%emt 0:00:30]} ({Don't play} 13... Nxd3 14. cxd3 Be6 15. d4 $14) (13... b5 $11 {keeps the balance.}) ({Predecessor:} 13... Rd8 14. Qxe5 Bd6 15. Qg5 Be7 16. Qe5 Bd6 17. Qg5 Be7 18. Bf4 Qb6 19. Be3 h6 20. Bxc5 Bxc5 {½-½ (59) Zochowski,K (2040)-Ruecker,B (2258) Krakow 2013}) 14. Bg5 {[%emt 0:00:30]} Kh8 {[%emt 0:00:30]} 15. Nd5 {[%emt 0:00:30]} Nxd5 {[%emt 0:00:30]} (15... Qd6 $16 {was worth a try.}) 16. exd5 {[%emt 0:00:30]} f6 $2 {[%emt 0:00:30] [#]} (16... Bd6) 17. Qh4 $1 {[%emt 0:00:30]} f5 {[%emt 0:00:30]} 18. Bxe7 {[%emt 0:00:30]} e4 {[%emt 0:00:30]} 19. Ng5 $18 {[%emt 0:00:30]} 1-0